[Event "Early-Titled-Tuesday-Blitz-April-02-2024"]
[Site "Chess.com"]
[Date "2024.04.02"]
[Round "2"]
[White "GMAneta"]
[Black "Khromkin"]
[Result "0-1"]
[WhiteElo "2526"]
[BlackElo "2336"]
[TimeControl "180+1"]
[EndTime "8:18:59 PDT"]
[Termination "Khromkin won by checkmate"]

1. d4 {[%clk 0:03:00]} 1... d5 {[%clk 0:02:57.7]} 2. Nf3 {[%clk 0:02:58.5]} 2...
a6 {[%clk 0:02:55.9]} 3. c4 {[%clk 0:02:59.4]} 3... dxc4 {[%clk 0:02:54.2]} 4.
e3 {[%clk 0:02:59.3]} 4... Bg4 {[%clk 0:02:53.6]} 5. Bxc4 {[%clk 0:02:58.6]}
5... e6 {[%clk 0:02:54.1]} 6. h3 {[%clk 0:02:56.7]} 6... Bh5 {[%clk 0:02:52]} 7.
Nbd2 {[%clk 0:02:56.3]} 7... Nc6 {[%clk 0:02:49.5]} 8. b3 {[%clk 0:02:53.3]}
8... Nf6 {[%clk 0:02:48.8]} 9. Bb2 {[%clk 0:02:52.9]} 9... Bd6 {[%clk
0:02:49.1]} 10. O-O {[%clk 0:02:52.4]} 10... O-O {[%clk 0:02:47.8]} 11. Qc2
{[%clk 0:02:51.5]} 11... Qe7 {[%clk 0:02:46]} 12. Ne5 {[%clk 0:02:51]} 12... Nb4
{[%clk 0:02:34.6]} 13. Qc1 {[%clk 0:02:47.9]} 13... b5 {[%clk 0:02:22.9]} 14. a3
{[%clk 0:02:47.2]} 14... bxc4 {[%clk 0:02:11.3]} 15. axb4 {[%clk 0:02:46]} 15...
cxb3 {[%clk 0:02:05.3]} 16. Nc6 {[%clk 0:02:45.3]} 16... Qd7 {[%clk 0:02:02.4]}
17. Nxb3 {[%clk 0:02:44.3]} 17... Nd5 {[%clk 0:01:47.9]} 18. Qc4 {[%clk
0:02:41.1]} 18... f5 {[%clk 0:01:40.8]} 19. Rfc1 {[%clk 0:02:35.1]} 19... Rf6
{[%clk 0:01:37.9]} 20. Ne5 {[%clk 0:02:29.9]} 20... Bxe5 {[%clk 0:01:23.3]} 21.
dxe5 {[%clk 0:02:29]} 21... Rg6 {[%clk 0:01:23.5]} 22. Kf1 {[%clk 0:02:18.5]}
22... Qe7 {[%clk 0:01:12.8]} 23. Nc5 {[%clk 0:02:08.8]} 23... Qg5 {[%clk
0:01:10.4]} 24. g3 {[%clk 0:02:08.2]} 24... Bf3 {[%clk 0:01:04.7]} 25. Rxa6
{[%clk 0:01:59.9]} 25... Re8 {[%clk 0:00:55.6]} 26. Bd4 {[%clk 0:01:49.6]} 26...
Qh5 {[%clk 0:00:52.8]} 27. h4 {[%clk 0:01:49]} 27... Qg4 {[%clk 0:00:48.8]} 28.
Rca1 {[%clk 0:01:44.9]} 28... Qh3+ {[%clk 0:00:46.8]} 29. Ke1 {[%clk 0:01:44.8]}
29... Qg2 {[%clk 0:00:43.4]} 30. Ra8 {[%clk 0:01:37.4]} 30... Qg1+ {[%clk
0:00:37.1]} 31. Qf1 {[%clk 0:01:36.2]} 31... Qxf1+ {[%clk 0:00:37.3]} 32. Kxf1
{[%clk 0:01:37.1]} 32... Nxe3+ {[%clk 0:00:36.3]} 33. Bxe3 {[%clk 0:01:33.3]}
33... Rxa8 {[%clk 0:00:35.7]} 34. Rc1 {[%clk 0:01:31.6]} 34... Rg4 {[%clk
0:00:32]} 35. Nd3 {[%clk 0:01:31.2]} 35... Re4 {[%clk 0:00:25.1]} 36. Rxc7
{[%clk 0:01:26.9]} 36... Ra1+ {[%clk 0:00:22.4]} 37. Ne1 {[%clk 0:01:23.5]}
37... Rxb4 {[%clk 0:00:20.4]} 38. Bd2 {[%clk 0:01:07.8]} 38... Rbb1 {[%clk
0:00:19.4]} 39. h5 {[%clk 0:01:04.8]} 39... h6 {[%clk 0:00:18.2]} 40. Re7 {[%clk
0:00:59.7]} 40... Bd5 {[%clk 0:00:15.4]} 41. Ke2 {[%clk 0:00:57]} 41... Ra2
{[%clk 0:00:13.1]} 42. Ke3 {[%clk 0:00:53.3]} 42... Rb3+ {[%clk 0:00:12.7]} 43.
Nd3 {[%clk 0:00:52.7]} 43... Raa3 {[%clk 0:00:11.7]} 44. Re8+ {[%clk 0:00:51.9]}
44... Kh7 {[%clk 0:00:10.3]} 45. Ke2 {[%clk 0:00:51.8]} 45... Rxd3 {[%clk
0:00:10.9]} 46. Be3 {[%clk 0:00:48.4]} 46... Rdb3 {[%clk 0:00:09.9]} 47. g4
{[%clk 0:00:45.8]} 47... Ra2+ {[%clk 0:00:09]} 48. Bd2 {[%clk 0:00:45.7]} 48...
Rbb2 {[%clk 0:00:07.6]} 49. gxf5 {[%clk 0:00:46]} 49... Rxd2+ {[%clk 0:00:07.5]}
50. Ke3 {[%clk 0:00:46.3]} 50... exf5 {[%clk 0:00:07.4]} 51. e6 {[%clk 0:00:46]}
51... Re2+ {[%clk 0:00:07.9]} 52. Kf4 {[%clk 0:00:46.3]} 52... Rxe6 {[%clk
0:00:08]} 53. Rd8 {[%clk 0:00:46]} 53... Re4+ {[%clk 0:00:06.3]} 54. Kg3 {[%clk
0:00:45.7]} 54... Rd2 {[%clk 0:00:04.7]} 55. f3 {[%clk 0:00:44.5]} 55... Rd3
{[%clk 0:00:04.7]} 56. Kf2 {[%clk 0:00:40]} 56... Ree3 {[%clk 0:00:04.3]} 57.
Kg2 {[%clk 0:00:38]} 57... Rxf3 {[%clk 0:00:05.2]} 58. Kh2 {[%clk 0:00:33.8]}
58... Rd2+ {[%clk 0:00:05.1]} 59. Kg1 {[%clk 0:00:33.5]} 59... Rh3 {[%clk
0:00:03.2]} 60. Rxd5 {[%clk 0:00:29]} 60... Rxd5 {[%clk 0:00:02]} 61. Kg2 {[%clk
0:00:29.4]} 61... Rb3 {[%clk 0:00:02.1]} 62. Kf2 {[%clk 0:00:29.5]} 62... Ra5
{[%clk 0:00:02.5]} 63. Kg2 {[%clk 0:00:29.9]} 63... Ra2+ {[%clk 0:00:02.6]} 64.
Kf1 {[%clk 0:00:29.8]} 64... Rb1# {[%clk 0:00:02.9]} 0-1

[Event "Early-Titled-Tuesday-Blitz-April-02-2024"]
[Site "Chess.com"]
[Date "2024.04.02"]
[Round "2"]
[White "xiaopang123"]
[Black "SaqoChess_Twitch"]
[Result "1/2-1/2"]
[WhiteElo "2262"]
[BlackElo "2659"]
[TimeControl "180+1"]
[EndTime "8:19:01 PDT"]
[Termination "Game drawn by repetition"]

1. d4 {[%clk 0:03:00.9]} 1... d5 {[%clk 0:02:59.7]} 2. c4 {[%clk 0:03:01]} 2...
e6 {[%clk 0:02:54]} 3. Nf3 {[%clk 0:03:01]} 3... Nf6 {[%clk 0:02:54.6]} 4. g3
{[%clk 0:02:57.7]} 4... Be7 {[%clk 0:02:54.3]} 5. Bg2 {[%clk 0:02:57.8]} 5...
O-O {[%clk 0:02:55]} 6. O-O {[%clk 0:02:58.3]} 6... dxc4 {[%clk 0:02:55.7]} 7.
Qc2 {[%clk 0:02:58.6]} 7... a6 {[%clk 0:02:54.5]} 8. a4 {[%clk 0:02:58.9]} 8...
c5 {[%clk 0:02:55.2]} 9. dxc5 {[%clk 0:02:51.8]} 9... Bxc5 {[%clk 0:02:56.1]}
10. Qxc4 {[%clk 0:02:51.9]} 10... Nbd7 {[%clk 0:02:55.6]} 11. Nc3 {[%clk
0:02:47.3]} 11... b5 {[%clk 0:02:53.3]} 12. Qh4 {[%clk 0:02:45]} 12... b4 {[%clk
0:02:37.1]} 13. Ne4 {[%clk 0:02:44.6]} 13... Be7 {[%clk 0:02:36.9]} 14. Bg5
{[%clk 0:02:37.3]} 14... Bb7 {[%clk 0:02:36.2]} 15. Nxf6+ {[%clk 0:02:27.9]}
15... Nxf6 {[%clk 0:02:30]} 16. Bxf6 {[%clk 0:02:25.6]} 16... Bxf6 {[%clk
0:02:29.7]} 17. Qxb4 {[%clk 0:02:25.6]} 17... Bxf3 {[%clk 0:02:29.7]} 18. Bxf3
{[%clk 0:02:24.7]} 18... Rb8 {[%clk 0:02:30]} 19. Qc4 {[%clk 0:02:20.3]} 19...
Bxb2 {[%clk 0:02:28.9]} 20. Rad1 {[%clk 0:02:12.9]} 20... Qb6 {[%clk 0:02:19]}
21. Qa2 {[%clk 0:01:22.6]} 21... Bf6 {[%clk 0:02:12.4]} 22. a5 {[%clk
0:01:20.5]} 22... Qc5 {[%clk 0:02:03.9]} 23. Rc1 {[%clk 0:01:19.5]} 23... Qe5
{[%clk 0:02:02.6]} 24. Rc6 {[%clk 0:01:16.8]} 24... Rb2 {[%clk 0:01:52]} 25. Qc4
{[%clk 0:01:16.1]} 25... Rb5 {[%clk 0:01:50.1]} 26. Rxa6 {[%clk 0:01:14.9]}
26... Rxa5 {[%clk 0:01:50.7]} 27. Rxa5 {[%clk 0:01:14.5]} 27... Qxa5 {[%clk
0:01:51.6]} 28. h4 {[%clk 0:01:13.8]} 28... Qe5 {[%clk 0:01:51.8]} 29. Qe4
{[%clk 0:01:09.9]} 29... Qd6 {[%clk 0:01:51.6]} 30. Qc6 {[%clk 0:01:09.6]} 30...
Qd4 {[%clk 0:01:50.5]} 31. Qe4 {[%clk 0:01:09.5]} 31... Qd6 {[%clk 0:01:49.7]}
32. Qc6 {[%clk 0:01:09.8]} 32... Qb8 {[%clk 0:01:48.9]} 33. Qb7 {[%clk
0:01:09.9]} 33... Qd8 {[%clk 0:01:47.4]} 34. Rc1 {[%clk 0:01:06.7]} 34... g6
{[%clk 0:01:45]} 35. Qc7 {[%clk 0:01:04]} 35... Qd4 {[%clk 0:01:43.6]} 36. Qc4
{[%clk 0:01:03.1]} 36... Qd6 {[%clk 0:01:40.3]} 37. Qc6 {[%clk 0:01:02.8]} 37...
Qd2 {[%clk 0:01:39.4]} 38. Qc2 {[%clk 0:01:02.8]} 38... Qb4 {[%clk 0:01:37]} 39.
Qc4 {[%clk 0:01:01.7]} 39... Qa3 {[%clk 0:01:37.2]} 40. Rb1 {[%clk 0:00:57.4]}
40... h5 {[%clk 0:01:11.2]} 41. Qb3 {[%clk 0:00:56.1]} 41... Qxb3 {[%clk
0:01:08.7]} 42. Rxb3 {[%clk 0:00:55.7]} 42... Rd8 {[%clk 0:01:09.6]} 43. Kg2
{[%clk 0:00:53.2]} 43... Rc8 {[%clk 0:01:09]} 44. Ra3 {[%clk 0:00:52.5]} 44...
Rc2 {[%clk 0:01:08.7]} 45. Ra8+ {[%clk 0:00:52.2]} 45... Kg7 {[%clk 0:01:08.6]}
46. Ra7 {[%clk 0:00:52.1]} 46... Rb2 {[%clk 0:01:08.1]} 47. Rb7 {[%clk
0:00:48.6]} 47... Ra2 {[%clk 0:01:08]} 48. Rd7 {[%clk 0:00:47.3]} 48... Ra4
{[%clk 0:01:06.6]} 49. Rb7 {[%clk 0:00:47.1]} 49... Be5 {[%clk 0:01:05]} 50. Bc6
{[%clk 0:00:44.4]} 50... Rc4 {[%clk 0:00:57.4]} 51. Be8 {[%clk 0:00:43.5]} 51...
Bc7 {[%clk 0:00:57.7]} 52. Bb5 {[%clk 0:00:42.1]} 52... Rc5 {[%clk 0:00:57.4]}
53. Bd3 {[%clk 0:00:41.5]} 53... f5 {[%clk 0:00:57.8]} 54. Rb5 {[%clk
0:00:41.2]} 54... Rc6 {[%clk 0:00:56.1]} 55. Rb7 {[%clk 0:00:37.1]} 55... Kf6
{[%clk 0:00:56]} 56. Ra7 {[%clk 0:00:35.4]} 56... e5 {[%clk 0:00:48.5]} 57. Ra6
{[%clk 0:00:34.9]} 57... Bb6 {[%clk 0:00:48.8]} 58. Bb5 {[%clk 0:00:34.8]} 58...
Rd6 {[%clk 0:00:49.2]} 59. e3 {[%clk 0:00:32.4]} 59... e4 {[%clk 0:00:44.1]} 60.
Bf1 {[%clk 0:00:30.7]} 60... Ke5 {[%clk 0:00:44.4]} 61. Bb5 {[%clk 0:00:29.1]}
61... Kd5 {[%clk 0:00:44.3]} 62. Be8 {[%clk 0:00:27.8]} 62... Kc5 {[%clk
0:00:44.6]} 63. Ra8 {[%clk 0:00:24.4]} 63... Kd5 {[%clk 0:00:42.2]} 64. Bf7+
{[%clk 0:00:22.4]} 64... Ke5 {[%clk 0:00:42.6]} 65. Rg8 {[%clk 0:00:21.6]} 65...
Rd2 {[%clk 0:00:33.9]} 66. Kf1 {[%clk 0:00:21.2]} 66... Rd1+ {[%clk 0:00:27]}
67. Ke2 {[%clk 0:00:20.7]} 67... Ra1 {[%clk 0:00:25.7]} 68. Rxg6 {[%clk
0:00:20.1]} 68... Ba5 {[%clk 0:00:26.2]} 69. f4+ {[%clk 0:00:16.6]} 69... exf3+
{[%clk 0:00:26.1]} 70. Kxf3 {[%clk 0:00:16.5]} 70... Rf1+ {[%clk 0:00:26.8]} 71.
Ke2 {[%clk 0:00:16.4]} 71... Re1+ {[%clk 0:00:26.4]} 72. Kf3 {[%clk 0:00:16.8]}
72... Rf1+ {[%clk 0:00:26.6]} 73. Ke2 {[%clk 0:00:17.2]} 73... Re1+ {[%clk
0:00:26.9]} 74. Kf3 {[%clk 0:00:17.6]} 74... Rf1+ {[%clk 0:00:24.8]} 1/2-1/2

[Event "Early-Titled-Tuesday-Blitz-April-02-2024"]
[Site "Chess.com"]
[Date "2024.04.02"]
[Round "2"]
[White "BestestBP"]
[Black "robertoalejandro10"]
[Result "0-1"]
[WhiteElo "2211"]
[BlackElo "2500"]
[TimeControl "180+1"]
[EndTime "8:19:02 PDT"]
[Termination "robertoalejandro10 won by checkmate"]

1. c4 {[%clk 0:03:00.9]} 1... Nf6 {[%clk 0:02:54.1]} 2. d4 {[%clk 0:02:56.3]}
2... c5 {[%clk 0:02:54.4]} 3. d5 {[%clk 0:02:55.2]} 3... d6 {[%clk 0:02:52.9]}
4. Nc3 {[%clk 0:02:55.2]} 4... g6 {[%clk 0:02:53.2]} 5. Nf3 {[%clk 0:02:50.7]}
5... Bg7 {[%clk 0:02:53.5]} 6. h3 {[%clk 0:02:51.2]} 6... O-O {[%clk 0:02:53.1]}
7. e4 {[%clk 0:02:50.3]} 7... Na6 {[%clk 0:02:53.6]} 8. Be3 {[%clk 0:02:41.9]}
8... Nc7 {[%clk 0:02:52.7]} 9. Be2 {[%clk 0:02:41.5]} 9... a6 {[%clk 0:02:52.6]}
10. a4 {[%clk 0:02:41.1]} 10... Rb8 {[%clk 0:02:53.3]} 11. a5 {[%clk 0:02:39.9]}
11... b5 {[%clk 0:02:53.2]} 12. axb6 {[%clk 0:02:30.2]} 12... Rxb6 {[%clk
0:02:53]} 13. Qc2 {[%clk 0:02:30]} 13... Bd7 {[%clk 0:02:52.8]} 14. O-O {[%clk
0:02:29]} 14... Qb8 {[%clk 0:02:52.7]} 15. Rfb1 {[%clk 0:02:23.7]} 15... Qb7
{[%clk 0:02:53.1]} 16. e5 {[%clk 0:01:44.9]} 16... Bf5 {[%clk 0:02:50.9]} 17.
Bd3 {[%clk 0:01:44.5]} 17... Bxd3 {[%clk 0:02:50.6]} 18. Qxd3 {[%clk 0:01:44.5]}
18... Nd7 {[%clk 0:02:51.5]} 19. exd6 {[%clk 0:01:34]} 19... exd6 {[%clk
0:02:52.4]} 20. Ra2 {[%clk 0:01:16.4]} 20... Rb8 {[%clk 0:02:49.5]} 21. Bf4
{[%clk 0:01:15.3]} 21... Rb3 {[%clk 0:02:45.7]} 22. Rba1 {[%clk 0:00:38.4]}
22... Ne5 {[%clk 0:02:01.9]} 23. Nxe5 {[%clk 0:00:25.8]} 23... dxe5 {[%clk
0:02:02.8]} 24. Bh2 {[%clk 0:00:22.2]} 24... f5 {[%clk 0:01:58.7]} 25. d6 {[%clk
0:00:18.1]} 25... Ne6 {[%clk 0:01:59.1]} 26. Qd5 {[%clk 0:00:17]} 26... Qxd5
{[%clk 0:01:57.1]} 27. Nxd5 {[%clk 0:00:14]} 27... Rxb2 {[%clk 0:01:53.5]} 28.
Rxb2 {[%clk 0:00:12.7]} 28... Rxb2 {[%clk 0:01:54.4]} 29. g4 {[%clk 0:00:13]}
29... f4 {[%clk 0:01:04.3]} 30. Rxa6 {[%clk 0:00:06.8]} 30... f3 {[%clk
0:01:04.7]} 31. Bg3 {[%clk 0:00:06.4]} 31... Rb8 {[%clk 0:00:36.3]} 32. Ra7
{[%clk 0:00:02.9]} 32... Kh8 {[%clk 0:00:25.6]} 33. Ne7 {[%clk 0:00:02.4]} 33...
Rd8 {[%clk 0:00:18.7]} 34. d7 {[%clk 0:00:02.8]} 34... Nf8 {[%clk 0:00:14.5]}
35. Nc6 {[%clk 0:00:01.6]} 35... Rxd7 {[%clk 0:00:14.6]} 36. Ra8 {[%clk
0:00:01.1]} 36... Kg8 {[%clk 0:00:12.1]} 37. Nxe5 {[%clk 0:00:01.3]} 37... Rd1+
{[%clk 0:00:11.8]} 38. Kh2 {[%clk 0:00:01.6]} 38... Rd2 {[%clk 0:00:06.1]} 39.
Nc6 {[%clk 0:00:01.7]} 39... Kf7 {[%clk 0:00:05.8]} 40. Ne5+ {[%clk 0:00:02.1]}
40... Bxe5 {[%clk 0:00:05.6]} 41. Bxe5 {[%clk 0:00:03]} 41... Rxf2+ {[%clk
0:00:06.2]} 42. Kg3 {[%clk 0:00:03.9]} 42... Rc2 {[%clk 0:00:06.6]} 43. Bd6
{[%clk 0:00:04.2]} 43... Ne6 {[%clk 0:00:06.1]} 44. Ra7+ {[%clk 0:00:05.1]}
44... Kg8 {[%clk 0:00:05.8]} 45. Kxf3 {[%clk 0:00:05.8]} 45... Rxc4 {[%clk
0:00:05.6]} 46. Ra8+ {[%clk 0:00:06]} 46... Kg7 {[%clk 0:00:06.2]} 47. Be5+
{[%clk 0:00:06.4]} 47... Kf7 {[%clk 0:00:06.7]} 48. Ra7+ {[%clk 0:00:06.2]}
48... Kf8 {[%clk 0:00:06.9]} 49. Rxh7 {[%clk 0:00:06.3]} 49... Ng5+ {[%clk
0:00:07.3]} 50. Ke3 {[%clk 0:00:05.9]} 50... Nxh7 {[%clk 0:00:08.2]} 51. Kd3
{[%clk 0:00:06.6]} 51... Ra4 {[%clk 0:00:08]} 52. h4 {[%clk 0:00:07]} 52... Kf7
{[%clk 0:00:08.3]} 53. h5 {[%clk 0:00:07.5]} 53... gxh5 {[%clk 0:00:09.2]} 54.
gxh5 {[%clk 0:00:08.4]} 54... Ke6 {[%clk 0:00:09.6]} 55. Bc3 {[%clk 0:00:08.5]}
55... Kf5 {[%clk 0:00:10.1]} 56. h6 {[%clk 0:00:08.6]} 56... Kg5 {[%clk
0:00:10.4]} 57. Bg7 {[%clk 0:00:09.5]} 57... Kg6 {[%clk 0:00:10.7]} 58. Kc3
{[%clk 0:00:09.4]} 58... Nf6 {[%clk 0:00:10.9]} 59. Kc2 {[%clk 0:00:07.3]} 59...
Ng4 {[%clk 0:00:09.7]} 60. Kc3 {[%clk 0:00:05.5]} 60... Nxh6 {[%clk 0:00:09.6]}
61. Bxh6 {[%clk 0:00:05.1]} 61... Kxh6 {[%clk 0:00:09.8]} 62. Kb3 {[%clk
0:00:06]} 62... Rb4+ {[%clk 0:00:10.1]} 63. Kc3 {[%clk 0:00:06.6]} 63... Kg6
{[%clk 0:00:11]} 64. Kd3 {[%clk 0:00:07.2]} 64... Kf5 {[%clk 0:00:11.9]} 65. Kc3
{[%clk 0:00:08.1]} 65... Ke5 {[%clk 0:00:12.8]} 66. Kd3 {[%clk 0:00:09]} 66...
Kd5 {[%clk 0:00:13.7]} 67. Kc3 {[%clk 0:00:09.9]} 67... Rh4 {[%clk 0:00:13.6]}
68. Kd3 {[%clk 0:00:10.3]} 68... Rh3+ {[%clk 0:00:14.5]} 69. Kc2 {[%clk
0:00:10.6]} 69... Kd4 {[%clk 0:00:15.4]} 70. Kb2 {[%clk 0:00:10.9]} 70... c4
{[%clk 0:00:16.3]} 71. Ka2 {[%clk 0:00:10.8]} 71... c3 {[%clk 0:00:16.2]} 72.
Kb3 {[%clk 0:00:10.9]} 72... Kd3 {[%clk 0:00:17.1]} 73. Ka2 {[%clk 0:00:11.3]}
73... c2 {[%clk 0:00:18]} 74. Kb2 {[%clk 0:00:11.6]} 74... Rh1 {[%clk
0:00:18.2]} 75. Ka2 {[%clk 0:00:11.5]} 75... Rb1 {[%clk 0:00:17.7]} 76. Ka3
{[%clk 0:00:11.3]} 76... Rb8 {[%clk 0:00:18.6]} 77. Ka2 {[%clk 0:00:12]} 77...
Kd2 {[%clk 0:00:18.8]} 78. Ka3 {[%clk 0:00:11.7]} 78... c1=Q+ {[%clk 0:00:19.2]}
79. Ka2 {[%clk 0:00:12.6]} 79... Qb2# {[%clk 0:00:19.4]} 0-1

[Event "Early-Titled-Tuesday-Blitz-April-02-2024"]
[Site "Chess.com"]
[Date "2024.04.02"]
[Round "2"]
[White "David_ATM"]
[Black "jumpingknight20"]
[Result "1/2-1/2"]
[WhiteElo "2412"]
[BlackElo "2675"]
[TimeControl "180+1"]
[EndTime "8:19:05 PDT"]
[Termination "Game drawn - insufficient material"]

1. e4 {[%clk 0:03:00.9]} 1... g6 {[%clk 0:02:58.5]} 2. d4 {[%clk 0:03:00.8]}
2... Bg7 {[%clk 0:02:59]} 3. Be3 {[%clk 0:03:01.3]} 3... c6 {[%clk 0:02:56.6]}
4. c4 {[%clk 0:02:59.7]} 4... d5 {[%clk 0:02:55.9]} 5. cxd5 {[%clk 0:02:59.6]}
5... cxd5 {[%clk 0:02:56.8]} 6. Bb5+ {[%clk 0:02:57.7]} 6... Nc6 {[%clk
0:02:54.8]} 7. e5 {[%clk 0:02:53.7]} 7... Bd7 {[%clk 0:02:46.7]} 8. Nc3 {[%clk
0:02:52.9]} 8... e6 {[%clk 0:02:45]} 9. Qd2 {[%clk 0:02:48.8]} 9... a6 {[%clk
0:02:42]} 10. Bxc6 {[%clk 0:02:39.1]} 10... Bxc6 {[%clk 0:02:42.9]} 11. Nge2
{[%clk 0:02:36.4]} 11... h6 {[%clk 0:02:40.8]} 12. O-O {[%clk 0:02:27.3]} 12...
Ne7 {[%clk 0:02:41]} 13. Ng3 {[%clk 0:02:20.8]} 13... Qd7 {[%clk 0:02:35.4]} 14.
Rfc1 {[%clk 0:02:16.9]} 14... Rc8 {[%clk 0:02:27.6]} 15. b3 {[%clk 0:02:14]}
15... Kf8 {[%clk 0:02:14.6]} 16. Rc2 {[%clk 0:02:14]} 16... Kg8 {[%clk
0:02:14.2]} 17. Rac1 {[%clk 0:02:14.6]} 17... Kh7 {[%clk 0:02:13.7]} 18. Nd1
{[%clk 0:02:00.8]} 18... h5 {[%clk 0:01:46.3]} 19. h4 {[%clk 0:01:56.8]} 19...
f6 {[%clk 0:01:40]} 20. exf6 {[%clk 0:01:50]} 20... Bxf6 {[%clk 0:01:40.9]} 21.
Bg5 {[%clk 0:01:49.6]} 21... Bg7 {[%clk 0:01:36]} 22. Nb2 {[%clk 0:01:45.7]}
22... Nf5 {[%clk 0:01:30.1]} 23. Nxf5 {[%clk 0:01:44.8]} 23... exf5 {[%clk
0:01:31]} 24. Re1 {[%clk 0:01:28.2]} 24... Rhe8 {[%clk 0:01:29.9]} 25. Rcc1
{[%clk 0:01:24.5]} 25... Re4 {[%clk 0:01:14.9]} 26. Rxe4 {[%clk 0:01:20.4]}
26... dxe4 {[%clk 0:01:14]} 27. Be3 {[%clk 0:01:02.4]} 27... Bd5 {[%clk
0:01:08]} 28. Nc4 {[%clk 0:00:57.6]} 28... Qc6 {[%clk 0:01:01.7]} 29. Ne5 {[%clk
0:00:48.1]} 29... Qxc1+ {[%clk 0:01:00.1]} 30. Qxc1 {[%clk 0:00:49]} 30... Rxc1+
{[%clk 0:01:01]} 31. Bxc1 {[%clk 0:00:49.9]} 31... b5 {[%clk 0:00:50.9]} 32. Kf1
{[%clk 0:00:48.6]} 32... a5 {[%clk 0:00:50.4]} 33. Ke1 {[%clk 0:00:45.3]} 33...
Bf8 {[%clk 0:00:48.2]} 34. Nd7 {[%clk 0:00:28.6]} 34... Be7 {[%clk 0:00:35.8]}
35. Bg5 {[%clk 0:00:27.8]} 35... Bxg5 {[%clk 0:00:31.2]} 36. hxg5 {[%clk
0:00:28.7]} 36... Kg7 {[%clk 0:00:32]} 37. g3 {[%clk 0:00:20.8]} 37... Be6
{[%clk 0:00:26.4]} 38. Nc5 {[%clk 0:00:18]} 38... Bc8 {[%clk 0:00:24.8]} 39. a3
{[%clk 0:00:17.3]} 39... Kf7 {[%clk 0:00:24.6]} 40. b4 {[%clk 0:00:16.1]} 40...
axb4 {[%clk 0:00:23.6]} 41. axb4 {[%clk 0:00:16.7]} 41... Ke7 {[%clk 0:00:24.5]}
42. Ke2 {[%clk 0:00:16.5]} 42... Kd6 {[%clk 0:00:23.9]} 43. Ke3 {[%clk 0:00:04]}
43... Kd5 {[%clk 0:00:23.9]} 44. f3 {[%clk 0:00:03.8]} 44... exf3 {[%clk
0:00:24.1]} 45. Kxf3 {[%clk 0:00:03.9]} 45... Kxd4 {[%clk 0:00:24.7]} 46. Kf4
{[%clk 0:00:04.3]} 46... Kd5 {[%clk 0:00:22.6]} 47. Ke3 {[%clk 0:00:04.1]} 47...
Kc4 {[%clk 0:00:21.9]} 48. Nd3 {[%clk 0:00:04.6]} 48... Be6 {[%clk 0:00:16]} 49.
Ne5+ {[%clk 0:00:03.4]} 49... Kxb4 {[%clk 0:00:16.3]} 50. Nxg6 {[%clk
0:00:04.3]} 50... Kc5 {[%clk 0:00:13.9]} 51. Nf4 {[%clk 0:00:03.9]} 51... Bg8
{[%clk 0:00:11.8]} 52. Nxh5 {[%clk 0:00:04.1]} 52... Kd6 {[%clk 0:00:09.8]} 53.
Kd4 {[%clk 0:00:03.8]} 53... Bf7 {[%clk 0:00:08.6]} 54. Nf4 {[%clk 0:00:03.7]}
54... b4 {[%clk 0:00:09.1]} 55. g6 {[%clk 0:00:03.9]} 55... Be8 {[%clk
0:00:09.5]} 56. Kc4 {[%clk 0:00:03.6]} 56... Ke5 {[%clk 0:00:09.5]} 57. Kxb4
{[%clk 0:00:03.6]} 57... Ke4 {[%clk 0:00:05.9]} 58. g7 {[%clk 0:00:03.8]} 58...
Bf7 {[%clk 0:00:05.9]} 59. Nh5 {[%clk 0:00:04.2]} 59... Kf3 {[%clk 0:00:06.1]}
60. Kc5 {[%clk 0:00:04]} 60... Kg4 {[%clk 0:00:06.5]} 61. Nf6+ {[%clk
0:00:02.7]} 61... Kxg3 {[%clk 0:00:07.1]} 62. g8=Q+ {[%clk 0:00:03.3]} 62...
Bxg8 {[%clk 0:00:07]} 63. Nxg8 {[%clk 0:00:04.2]} 63... f4 {[%clk 0:00:07.9]}
64. Nf6 {[%clk 0:00:04.6]} 64... f3 {[%clk 0:00:08.5]} 65. Kd4 {[%clk 0:00:05]}
65... Kf2 {[%clk 0:00:06.9]} 66. Ne4+ {[%clk 0:00:05.9]} 66... Ke2 {[%clk
0:00:07.5]} 67. Ke5 {[%clk 0:00:06.6]} 67... Ke3 {[%clk 0:00:07.4]} 68. Kf5
{[%clk 0:00:06.9]} 68... f2 {[%clk 0:00:07.9]} 69. Nxf2 {[%clk 0:00:07]} 1/2-1/2